[Event "Reykjavik Open 2024"]
[Site "Reykjavik"]
[Date "2024.03.16"]
[Round "2.7"]
[White "Sanal, Vahap"]
[Black "Risting, Eivind Olav"]
[Result "1-0"]
[ECO "E14"]
[WhiteElo "2558"]
[BlackElo "2336"]
[Annotator "TA"]
[PlyCount "85"]
[EventDate "2024.03.12"]
[EventCountry "ISL"]
[SourceTitle "playchess.com"]
[Source "ChessBase"]
[SourceQuality "1"]
[TimeControl "40/5400+30:1800+30"]

{[%evp 19,85,30,29,22,30,18,30,2,18,17,14,22,30,27,38,29,20,35,29,30,47,33,61,18,59,26,69,66,55,56,61,53,73,50,54,48,67,68,81,65,94,83,131,131,251,240,254,248,230,174,321,189,192,201,271,254,266,247,279,255,258,256,234,77,206,191,194,202]} 1. c4 {[%emt 0:00:36]} e6 {[%emt 0:04:26]} 2. Nf3 {[%emt 0:01:44]} d5 {[%emt 0:01:13]} 3. e3 {[%emt 0:01:05]} Nf6 {[%emt 0:00:30]} 4. b3 {[%emt 0:00:29]} b6 {[%emt 0:02:25]} 5. Bb2 {[%emt 0:00:11]} Bb7 {[%emt 0:00:21]} 6. d4 {[%emt 0:03:04]} Nbd7 {[%emt 0:02:00]} 7. Bd3 {[%emt 0:00:51]} c5 {[%emt 0:09:01]} 8. cxd5 {[%emt 0:01:29]} exd5 {[%emt 0:02:20]} 9. O-O {[%emt 0:00:48]} Be7 {[%emt 0:02:40]} 10. Nc3 {[%emt 0:00:15]} O-O {[%emt 0:00:24]} 11. Ne2 {[%emt 0:00:47]} Ne4 {[%emt 0:04:12]} 12. Rc1 {[%emt 0:03:02]} Rc8 {[%emt 0:01:48]} 13. Ng3 {[%emt 0:00:31] White has an edge.} Nxg3 {[%emt 0:05:49]} 14. hxg3 {[%emt 0:00:43]} Bf6 {[%emt 0:01:43]} 15. Qe2 {[%emt 0:13:41]} Rc7 {[%emt 0:08:30]} 16. Rfd1 {[%emt 0:01:04]} (16. Ne5 {seems wilder.} g6 17. Nxd7 Qxd7 18. dxc5 Bxb2 19. c6) 16... Qe7 {[%emt 0:02:25]} 17. Bf5 {[%emt 0:15:43]} Nb8 {[%emt 0:18:07]} 18. Ba3 {[%emt 0:16:27]} g6 {[%emt 0:04:58]} 19. Bh3 {[%emt 0:01:36]} Na6 {[%emt 0:01:11]} 20. Rc2 {[%emt 0:00:22]} Qe8 {[%emt 0:06:22]} 21. Qd2 {[%emt 0:11:42]} Be7 {[%emt 0:06:38]} 22. Qc1 {[%emt 0:01:17]} Qb5 {[%emt 0:02:20]} 23. Ne5 {[%emt 0:02:33][%cal Oe3e4]} Nb4 {[%emt 0:01:04]} 24. Bxb4 {[%emt 0:00:34]} Qxb4 {[%emt 0:00:06]} 25. Bg4 {[%emt 0:03:34][%cal Bh3g4,Bg4f3,Bf3e2][%mdl 32] White is more active.} Rd8 {[%emt 0:03:09][%cal Oc5c4]} 26. Bf3 {[%emt 0:01:10]} Qb5 {[%emt 0:01:09]} 27. Nd3 {[%emt 0:01:43]} Bd6 {[%emt 0:03:27]} 28. Nf4 {[%emt 0:12:29]} Bxf4 {[%emt 0:00:23]} 29. gxf4 {[%emt 0:00:05]} a5 {[%emt 0:01:08]} 30. Be2 {[%emt 0:00:52]} Qb4 {[%emt 0:02:01] [#]} (30... Qd7 $142) 31. Rc3 $1 $16 {[%emt 0:01:42] aiming for a3.} a4 {[%emt 0:01:09]} (31... c4 $16 {was worth a try.}) 32. a3 $18 {[%emt 0:00:55]} Qa5 {[%emt 0:00:03] [#]} 33. b4 {[%emt 0:00:25][%mdl 512]} Qa7 {[%emt 0:00:10]} 34. dxc5 {[%emt 0:00:41]} Rdc8 {[%emt 0:02:36]} (34... bxc5 $142 35. Rxc5 Rxc5 36. Qxc5 (36. bxc5 Rc8 $16) 36... Qxc5 37. bxc5 Bc6) 35. cxb6 {[%emt 0:01:26]} (35. Bg4 f5 $18) (35. e4 $142 d4 36. Rxd4 bxc5 37. bxc5 Rxc5 38. Rxc5 Qxc5 39. Rd8+ Kg7 40. Rxc8 Qxc8 41. Qxc8 Bxc8 42. Bb5) 35... Qxb6 {[%emt 0:00:44]} 36. Rxc7 {[%emt 0:00:17]} Rxc7 {[%emt 0:00:05]} 37. Qb2 {[%emt 0:00:59]} Qc6 {[%emt 0:00:44]} 38. Qe5 {[%emt 0:00:57]} Qc3 {[%emt 0:01:01]} 39. Bb5 {[%emt 0:01:20]} Qxe5 {[%emt 0:00:54]} 40. fxe5 {[%emt 0:00:03]} Rc3 {[%emt 0:00:13]} 41. Rd3 $2 {[%emt 0:30:45]} (41. Bxa4 Rxa3 42. Bd7 Rc3 $16) (41. e4 $18 {and White stays clearly on top.} dxe4 42. e6 (42. Bxa4 Rxa3 43. Bb5 Ra8 $14) 42... fxe6 43. Rd8+ (43. Bxa4 Rxa3 44. Bc2 Rc3 $11) 43... Kg7 44. Rd7+ (44. Bxa4 Bd5 $17) 44... Kh6 45. Rxb7 Rxa3 46. Bc4) 41... Rc1+ {[%emt 0:30:29]} (41... Rb3 $16) 42. Kh2 {[%emt 0:00:02] Black must now prevent e4.} Bc6 {[%emt 0:00:08]} 43. Ba6 {[%emt 0:01:18] Weighted Error Value: White=0.19 (very precise) /Black=0.26 (precise) .  Mistake:       	White=2     	Black=4      Inaccurate:     	White=3     	Black=5      OK:         	White=10    	Black=9      Best:        	White=2     	Black=1      Strong:       	White=1     	---        Brilliant:      	White=1     	---} (43. Bxc6 Rxc6 44. g4 (44. Rxd5 Rc3 $16) 44... Kf8) 1-0

[Event "Reykjavik Open 2024"]
[Site "Reykjavik"]
[Date "2024.03.16"]
[Round "2.8"]
[White "Ragnarsson, Dagur"]
[Black "Galperin, Platon"]
[Result "1/2-1/2"]
[ECO "A65"]
[WhiteElo "2337"]
[BlackElo "2555"]
[Annotator "TA"]
[PlyCount "110"]
[EventDate "2024.03.12"]
[EventCountry "ISL"]
[SourceTitle "playchess.com"]
[Source "ChessBase"]
[SourceQuality "1"]
[TimeControl "40/5400+30:1800+30"]

{[%evp 17,110,24,35,0,35,30,28,23,34,27,38,39,39,0,0,-39,-47,-148,-79,-72,-100,-118,-83,-226,-230,-322,-322,-362,-160,-170,-165,-234,-215,-219,-220,-209,-53,-139,-40,-82,-82,-85,-83,-85,-39,-39,-39,-43,-52,-39,-39,-53,-30,-91,-82,-206,-52,-47,-47,-138,-120,-118,-122,-140,-138,-189,-173,-185,-191,-190,-188,-172,-132,-189,-181,-174,-169,-165,-174,-173,-147,-174,-170,-244,-241,-318,-318,-310,-5,-5,-5,-8,0,0,0]} 1. d4 {[%emt 0:00:04]} Nf6 {[%emt 0:03:08]} 2. c4 {[%emt 0:00:11]} g6 {[%emt 0:00:06]} 3. Nc3 {[%emt 0:01:27]} Bg7 {[%emt 0:00:06]} 4. e4 {[%emt 0:00:07]} d6 {[%emt 0:00:03]} 5. f3 {[%emt 0:00:06]} O-O {[%emt 0:00:15]} 6. Nge2 {[%emt 0:00:16]} c5 {[%emt 0:00:38]} 7. d5 {[%emt 0:01:08]} e6 {[%emt 0:02:26]} 8. Ng3 {[%emt 0:02:52]} exd5 {[%emt 0:01:10]} 9. cxd5 {[%emt 0:00:09]} h5 {[%emt 0:00:13][%cal Bh7h5,Bh5h4][%mdl 32]} 10. Be2 {[%emt 0:00:52]} a6 {[%emt 0:02:22]} 11. a4 {[%emt 0:03:00]} Nh7 {[%emt 0:13:13] Prevents Bg5} 12. Be3 {[%emt 0:15:32] White has an edge.} h4 {[%emt 0:00:28]} 13. Nf1 {[%emt 0:00:05]} f5 {[%emt 0:00:04]} 14. exf5 {[%emt 0:12:11]} gxf5 {[%emt 0:03:22]} 15. a5 {[%emt 0:25:25]} Nd7 {[%emt 0:06:28]} 16. Qc2 {[%emt 0:04:13]} f4 {[%emt 0:17:35]} 17. Bd2 {[%emt 0:04:31]} ({White must play} 17. Bf2 $1 $15) 17... Ng5 {[%emt 0:08:31]} (17... Ne5 $142 {aiming for ...h3.} 18. Ne4 Ng5) 18. h3 $17 {[%emt 0:07:36]} Ne5 $36 {[%emt 0:18:25][%mdl 2048] ...Bf5 is the strong threat. Black is really pushing.} 19. Nh2 {[%emt 0:05:03]} Bf5 {[%emt 0:14:28]} 20. Ne4 {[%emt 0:00:05] [#]} (20. Qc1 $17) 20... Qe8 $1 $19 {[%emt 0:04:21]} 21. Ra4 {[%emt 0:01:23]} Qg6 {[%emt 0:00:17]} 22. Ng4 {[%emt 0:01:43]} Nxg4 {[%emt 0:02:01]} (22... Rae8 $19 {has better winning chances.} 23. O-O Bxe4 24. Rxe4 Nxg4 25. hxg4 h3 (25... Nxe4 $2 26. fxe4 Qxe4 27. Bd3 $19)) 23. hxg4 $17 {[%emt 0:00:07]} Bxe4 {[%emt 0:00:48]} 24. fxe4 {[%emt 0:00:19]} (24. Rxe4 {is a better defense.} Nxe4 25. fxe4) 24... f3 {[%emt 0:00:07]} 25. gxf3 {[%emt 0:07:24]} Nxf3+ {[%emt 0:00:03]} 26. Kd1 {[%emt 0:01:10][%cal Oe4e5]} Nd4 $2 {[%emt 0:02:09]} (26... Qxg4 27. e5 Qg3 (27... Qg2 28. Raxh4 Nxh4 29. Rxh4 $11) 28. Qd3 $15) (26... Rae8 $19 27. Be3 Qxg4) 27. Qd3 {[%emt 0:00:04] [#]} (27. Rxd4 $1 $15 Bxd4 (27... cxd4 28. Rxh4 Qf6 29. g5 $14) 28. Rxh4) 27... Rae8 {[%emt 0:00:06]} (27... Rf2 $1 $17 28. Rxd4 (28. e5 $2 Qxd3 29. Bxd3 Bxe5 $19) 28... cxd4 (28... Bxd4 29. Rxh4 Qe8 30. e5 $11)) 28. e5 {[%emt 0:00:56]} Qxd3 {[%emt 0:00:28]} 29. Bxd3 {[%emt 0:00:04]} Bxe5 {[%emt 0:01:08]} (29... Rxe5 30. Rxh4 Rf2 (30... Rxd5 $2 31. Bc4 $18) 31. Rh1 $11) 30. Rxh4 {[%emt 0:00:05]} Nf3 {[%emt 0:00:17]} (30... Rf2 $17 {[%cal Of2d2] White must now prevent ...Rxd2+!} 31. Rh1 Nb3) 31. Rh5 $15 {[%emt 0:03:49]} Nxd2 {[%emt 0:00:06]} (31... Bxb2 32. Bh7+ Kf7 33. Bh6 $16) 32. Rg5+ {[%emt 0:00:28]} Bg7 {[%emt 0:00:04]} 33. Kxd2 {[%emt 0:00:08]} Rf2+ {[%emt 0:00:07]} 34. Kd1 {[%emt 0:00:09]} Re3 {[%emt 0:01:28]} 35. Bf5 {[%emt 0:00:04]} (35. Ra3 $1 $11 Rh3 (35... Rxb2 $2 36. Bh7+ Kxh7 37. Rxe3 $18) 36. Rh5 Rxh5 37. gxh5) 35... Kf8 {[%emt 0:00:50][%cal Oe3g3] ...Rg3! would now be deadly.} (35... Rxb2 36. Be6+ Kh7 37. Bf5+ Kh8 38. Rh5+ Kg8 39. Rf4 $11) 36. Re4 {[%emt 0:02:24]} (36. Ra3 $17) 36... Rxe4 $2 {[%emt 0:00:28]} ({Better is} 36... Rf1+ $19 37. Kc2 Rh3 (37... Rf2+ $2 38. Kd1 $19)) 37. Bxe4 {[%emt 0:00:04][%cal Ob2b4]} Rxb2 $19 {[%emt 0:00:09][%mdl 4096] Endgame. KRB-KRB} 38. Bg6 {[%emt 0:01:29]} (38. Rf5+ $15 Ke7 39. g5) 38... Bf6 {[%emt 0:01:00]} 39. Rf5 {[%emt 0:01:48]} Kg7 {[%emt 0:00:02]} 40. Be8 {[%emt 0:00:37]} Rg2 {[%emt 0:00:22]} 41. g5 {[%emt 0:30:33]} (41. Rf4 $17) 41... Bxg5 {[%emt 0:30:11]} (41... Rxg5 42. Rxg5+ Bxg5 43. Bd7 $15) 42. Rf7+ {[%emt 0:00:09]} Kh6 {[%emt 0:00:10]} 43. Rxb7 {[%emt 0:00:00]} Rd2+ {[%emt 0:00:00]} 44. Ke1 {[%emt 0:00:00]} Rxd5 {[%emt 0:00:00] Threatens to win with ...Re5+.} 45. Bf7 {[%emt 0:00:00]} (45. Bc6 $17 {was called for.} Bd2+ 46. Kd1) 45... Rd4 {[%emt 0:00:00]} 46. Rb6 {[%emt 0:00:00]} Kg7 {[%emt 0:00:00]} 47. Bb3 {[%emt 0:00:00]} Bd2+ {[%emt 0:00:00]} 48. Ke2 {[%emt 0:00:00]} Bxa5 {[%emt 0:00:00]} 49. Rxa6 {[%emt 0:00:00]} Bb4 {[%emt 0:00:00]} 50. Ke3 {[%emt 0:02:23]} (50. Ra7+ $142 Kg6 51. Rc7) 50... Kf6 {[%emt 0:00:00]} 51. Ra7 {[%emt 0:00:59]} d5 {[%emt 0:00:00]} 52. Rd7 {[%emt 0:00:12]} Ke6 {[%emt 0:00:00]} (52... Ke5 $19 {Strongly threatening ...c4.} 53. Rd8 Re4+ 54. Kf3 c4) 53. Rxd5 $1 $11 {[%emt 0:00:04] The position is equal.} Bd2+ {[%emt 0:00:00]} (53... Rxd5 $5 54. Ke4 $8 Kd6 (54... c4 55. Bxc4 Bf8 56. Bxd5+ Kf6 57. Bg8 $11) 55. Bxd5 Ba5 $11) 54. Kf3 $1 {[%emt 0:01:09]} Rb4 {[%emt 0:00:00]} (54... Rxd5 $5 55. Ke4 $8 Kd7 (55... c4 56. Bxc4 Bh6 57. Bxd5+ Kf6 58. Bg8 $11) 56. Bxd5 Kc7 $11) 55. Ba2 {[%emt 0:01:16]} Bf4 {[%emt 0:00:00] Weighted Error Value: White=0.32/Black=0.38.  Missed win:     	---       	Black=2      Mistake:       	White=10    	Black=5      Inaccurate:     	White=5     	Black=1      OK:         	White=13    	Black=17     Best:        	White=6     	Black=5      Strong:       	White=2     	Black=1} 1/2-1/2

[Event "Reykjavik Open 2024"]
[Site "Reykjavik"]
[Date "2024.03.16"]
[Round "2.9"]
[White "Can, Emre"]
[Black "Cieslak, Patryk"]
[Result "1/2-1/2"]
[ECO "E04"]
[WhiteElo "2551"]
[BlackElo "2325"]
[Annotator "TA"]
[PlyCount "126"]
[EventDate "2024.03.12"]
[EventCountry "ISL"]
[SourceTitle "playchess.com"]
[Source "ChessBase"]
[SourceQuality "1"]
[TimeControl "40/5400+30:1800+30"]

{[%evp 14,126,4,-7,3,0,10,-12,16,14,0,-2,21,18,23,20,11,0,19,10,25,0,24,14,26,19,25,30,45,37,36,29,30,23,23,10,24,16,16,16,68,69,100,100,108,118,173,172,201,166,222,91,74,76,158,158,263,173,173,105,233,0,142,0,246,142,133,29,134,29,68,68,68,0,69,68,69,29,103,0,120,68,68,0,0,0,0,0,0,0,0,0,0,0,0,0,0,0,0,0,0,0,0,0,0,0,0,0,0,0,0,0,0,0,0]} 1. d4 {[%emt 0:04:57]} d5 {[%emt 0:00:04]} 2. c4 {[%emt 0:00:38]} e6 {[%emt 0:00:06]} 3. Nf3 {[%emt 0:00:05]} Nf6 {[%emt 0:00:08]} 4. g3 {[%emt 0:00:58]} dxc4 {[%emt 0:00:05]} 5. Bg2 {[%emt 0:00:16]} c6 {[%emt 0:00:04]} 6. O-O {[%emt 0:05:19]} b5 {[%emt 0:01:16]} 7. Ne5 {[%emt 0:04:31]} Bb7 {[%emt 0:00:23]} 8. Nc3 {[%emt 0:00:18]} a6 {[%emt 0:00:22]} 9. b3 {[%emt 0:01:40]} cxb3 {[%emt 0:00:56]} 10. Qxb3 {[%emt 0:00:18]} Be7 {[%emt 0:13:18]} 11. Rd1 {[%emt 0:03:03]} O-O {[%emt 0:02:05]} 12. Ba3 {[%emt 0:22:36]} Qc7 {[%emt 0:13:22]} 13. Ne4 {[%emt 0:20:39]} c5 {[%emt 0:13:08]} 14. Nxc5 {[%emt 0:04:43]} Bxg2 {[%emt 0:00:44]} 15. Kxg2 {[%emt 0:02:52]} Bxc5 {[%emt 0:05:15]} (15... Rc8 $5) 16. Bxc5 {[%emt 0:00:08]} Rc8 {[%emt 0:02:12]} 17. Qf3 {[%emt 0:05:30]} Nc6 {[%emt 0:02:12]} 18. Nd3 {[%emt 0:01:14]} e5 {[%emt 0:02:05]} 19. dxe5 {[%emt 0:01:46]} Nxe5 {[%emt 0:00:19]} 20. Nxe5 {[%emt 0:00:09]} Qxc5 {[%emt 0:03:18]} 21. Nd7 {[%emt 0:00:12]} Qc6 {[%emt 0:03:06]} 22. Nxf6+ {[%emt 0:00:30]} Qxf6 {[%emt 0:00:06]} 23. Qxf6 {[%emt 0:00:11]} gxf6 $14 {[%emt 0:00:04][%mdl 4096] Endspiel. KRR-KRR} 24. Rd6 {[%emt 0:00:10]} Rc2 {[%emt 0:00:47]} 25. e3 {[%emt 0:06:01][%cal Oa2a4]} Kg7 {[%emt 0:00:16]} 26. a4 {[%emt 0:00:37]} b4 {[%emt 0:02:46]} (26... Re8 $1 $11) 27. a5 $1 {[%emt 0:00:07]} Re8 {[%emt 0:03:45]} 28. Rb1 $1 {[%emt 0:04:13]} (28. Rxa6 $6 Rxe3 29. Rb6 Ree2 $11) 28... Rxe3 {[%emt 0:08:22]} 29. Rxb4 {[%emt 0:00:18]} Re5 {[%emt 0:07:54]} (29... h5 $16) 30. Rg4+ $18 {[%emt 0:04:35]} ({Jedoch nicht} 30. Rxa6 $6 Ra2 $14) 30... Rg5 {[%emt 0:02:10]} 31. Rxg5+ {[%emt 0:00:13]} fxg5 {[%emt 0:00:02] KR-KR} 32. g4 {[%emt 0:02:42]} (32. Rxa6 $18 {und der Rest ist Schweigen. Droht Ra8 und aus.} Rc5 33. Ra7) 32... Ra2 {[%emt 0:00:42]} 33. Rxa6 {[%emt 0:00:05]} Ra3 {[%emt 0:00:07]} (33... Ra4 $142) 34. Ra8 $16 {[%emt 0:00:54]} h6 {[%emt 0:00:49]} (34... Ra4 $16 {war nötig.}) 35. Ra6 {[%emt 0:02:46]} Kh7 {[%emt 0:02:34]} 36. Kf1 {[%emt 0:00:17]} (36. h3 $18) 36... Ra2 {[%emt 0:00:10]} (36... Ra1+ $16 {war einen Versuch wert.} 37. Kg2 Ra4) 37. Kg2 {[%emt 0:01:05]} Ra3 $1 {[%emt 0:00:10]} 38. Kf1 {[%emt 0:00:11]} (38. h3 $16) 38... Ra2 $1 $18 {[%emt 0:00:02]} 39. h3 {[%emt 0:00:06]} (39. Ra8 $18) 39... Ra3 {[%emt 0:01:09] [#]} 40. Ke2 {[%emt 0:00:53]} (40. Kg2 $1 $16) 40... Kg7 $11 {[%emt 0:02:08]} 41. f3 {[%emt 0:05:23]} (41. Ra7 $16) 41... Kh7 {[%emt 0:02:08]} 42. Ra8 {[%emt 0:08:09]} Kg7 {[%emt 0:05:52]} 43. Ra6 {[%emt 0:01:29]} Kh7 $1 {[%emt 0:00:03]} 44. Ra7 {[%emt 0:01:25]} Kg6 {[%emt 0:00:29]} 45. a6 {[%emt 0:00:19]} Kf6 {[%emt 0:03:39] [#]} (45... Kg7 $11 {bleibt in der Remisbreite.}) 46. Ra8 {[%emt 0:05:18] Weiß steht aktiver.} (46. Kf2 $1 $16) 46... Kg7 {[%emt 0:06:33]} (46... Ke5 $1 $11 {hält das Gleichgewicht.}) 47. Kd2 {[%emt 0:03:19]} ({Günstiger ist} 47. Kf2 $16) 47... Rxf3 $14 {[%emt 0:01:00]} 48. Kc2 {[%emt 0:01:27]} (48. a7 $1 $14 Ra3 49. Kc2) 48... Rxh3 $11 {[%emt 0:01:49] Die Stellung ist ausgeglichen.} 49. Kb2 {[%emt 0:00:08]} (49. a7 $5 Ra3 $8 50. Kd2 $11) 49... Rh2+ {[%emt 0:00:39]} 50. Kb3 {[%emt 0:00:20]} Rh1 {[%emt 0:00:34]} (50... Rg2 51. a7 Rg3+ (51... Rxg4 $2 {zu gefräßig.} 52. Rd8 $18) 52. Kb4 Rxg4+ 53. Kb5 $18) 51. Kb4 {[%emt 0:02:49]} Ra1 {[%emt 0:02:23][%cal Oh6h5]} 52. Kb5 {[%emt 0:00:05]} h5 {[%emt 0:05:00]} 53. gxh5 {[%emt 0:00:06]} f5 {[%emt 0:03:12] Und ...f4 würde nun gewinnen.} 54. Rd8 {[%emt 0:01:45]} f4 {[%emt 0:02:38] ...f3 ist eine echte Drohung.} 55. Rd6 {[%emt 0:00:30]} f3 {[%emt 0:00:27]} 56. Rg6+ {[%emt 0:00:42]} Kh7 {[%emt 0:00:02]} 57. Rxg5 {[%emt 0:00:50]} f2 {[%emt 0:00:05]} 58. Rf5 {[%emt 0:00:04]} f1=Q+ {[%emt 0:00:04]} 59. Rxf1 {[%emt 0:00:04]} Rxf1 {[%emt 0:00:10]} 60. a7 {[%emt 0:00:06]} Ra1 {[%emt 0:00:04]} 61. Kb6 {[%emt 0:00:03]} Kh6 {[%emt 0:00:05]} 62. Kb7 {[%emt 0:00:05]} Rxa7+ {[%emt 0:00:04]} 63. Kxa7 {[%emt 0:00:03]} Kxh5 {[%emt 0:00:05] Gewichteter Fehlerwert: Weiß=0.29 (präzise) /Schwarz=0.16 (sehr präzise) .  Fehler:       	Weiß=9     	Schwarz=7     Ungenau:       	Weiß=3     	Schwarz=4     OK:         	Weiß=16    	Schwarz=19    Bester:       	Weiß=6     	Schwarz=2     Stark:        	Weiß=2     	Schwarz=3} 1/2-1/2

[Event "Reykjavik Open 2024"]
[Site "Reykjavik"]
[Date "2024.03.16"]
[Round "2.10"]
[White "Kistrup, Nicolai"]
[Black "Maze, Sebastien"]
[Result "0-1"]
[ECO "E32"]
[WhiteElo "2324"]
[BlackElo "2551"]
[Annotator "RC"]
[PlyCount "60"]
[EventDate "2024.03.12"]
[EventCountry "ISL"]
[SourceTitle "playchess.com"]
[Source "ChessBase"]
[SourceQuality "1"]
[TimeControl "40/5400+30:1800+30"]

1. d4 {[%emt 0:00:02]} Nf6 {[%emt 0:03:44]} 2. c4 {[%emt 0:00:06]} e6 {[%emt 0:00:22]} 3. Nc3 {[%emt 0:01:14]} Bb4 {[%emt 0:00:23]} 4. Qc2 {[%emt 0:00:19]} d6 {[%emt 0:08:42]} 5. e4 {[%emt 0:04:25]} Nbd7 {[%emt 0:01:58]} 6. Nf3 {[%emt 0:03:11]} e5 {[%emt 0:01:56]} 7. Bd3 {[%emt 0:07:12]} O-O {[%emt 0:03:05]} 8. O-O {[%emt 0:01:18]} Re8 {[%emt 0:00:32]} 9. Nd5 {[%emt 0:08:48]} c5 {[%emt 0:08:13]} 10. Nxb4 {[%emt 0:14:34]} cxb4 {[%emt 0:00:03]} 11. a3 {[%emt 0:03:18]} Qb6 {[%emt 0:13:54]} 12. axb4 {[%emt 0:09:32]} exd4 {[%emt 0:00:16]} 13. h3 {[%emt 0:10:52]} Ne5 {[%emt 0:06:09]} 14. Nxe5 {[%emt 0:00:48]} dxe5 {[%emt 0:00:01]} 15. c5 {[%emt 0:02:07]} Qd8 {[%emt 0:01:12]} 16. f4 {[%emt 0:06:04]} exf4 {[%emt 0:05:15]} 17. Bxf4 {[%emt 0:00:22]} Nh5 {[%emt 0:00:04]} 18. Bd6 {[%emt 0:04:37]} Qg5 {[%emt 0:03:34]} 19. Qf2 {[%emt 0:01:33]} Bxh3 {[%emt 0:06:35]} 20. Bc4 {[%emt 0:09:00]} Be6 {[%emt 0:14:35]} 21. Bxe6 {[%emt 0:01:07]} fxe6 {[%emt 0:00:02]} 22. Rxa7 {[%emt 0:03:26]} h6 {[%emt 0:00:15]} 23. Rxb7 {[%emt 0:04:50]} e5 {[%emt 0:01:42]} 24. Qf3 {[%emt 0:02:59]} Ng3 {[%emt 0:04:17]} 25. Rd1 {[%emt 0:00:19]} Rf8 {[%emt 0:06:37]} 26. Bxf8 {[%emt 0:00:41]} Rxf8 {[%emt 0:00:02]} 27. Qb3+ {[%emt 0:00:10]} Kh7 {[%emt 0:00:04]} 28. Rf7 {[%emt 0:00:42]} Ne2+ {[%emt 0:00:55]} 29. Kf2 {[%emt 0:00:44]} Rxf7+ {[%emt 0:00:17]} 30. Ke1 {[%emt 0:00:39]} Ng3 {[%emt 0:01:44]} 0-1